bitfinex-derivatives/quotes_BTCF0:USTF0_20250728
["timestamp","ask_amount","ask_price","bid_price","bid_amount"]
[1753694905636,0.86430928,119020.0,119010.0,2.66493269]
[1753694905940,0.86430928,119020.0,119010.0,1.99609269]
[1753694906543,0.86430928,119020.0,119010.0,2.26941069]
[1753694907138,0.86430928,119020.0,119010.0,2.01771505]
[1753694907340,0.86430928,119020.0,119010.0,2.26941069]
[1753694908343,0.86430928,119020.0,119010.0,1.10701069]
[1753694909542,0.86430928,119020.0,119010.0,0.85531505]
[1753694909744,0.86430928,119020.0,119010.0,1.08855804]
[1753694910349,0.61261364,119020.0,119010.0,1.08855804]
[1753694910548,0.86430928,119020.0,119010.0,1.08855804]
[1753694911348,0.61261364,119020.0,119010.0,1.08855804]
[1753694911548,0.22964364,119020.0,119010.0,1.08855804]
[1753694912044,0.06162154,119020.0,119010.0,1.08855804]
[1753694912248,0.22964364,119020.0,119010.0,1.34025368]
[1753694912443,0.01654154,119020.0,119010.0,1.77669023]
[1753694912649,0.22851464,119030.0,119020.0,0.1680221]
[1753694912850,0.24504895,119030.0,119020.0,0.67141338]
[1753694913345,0.29012895,119030.0,119020.0,0.67141338]
[1753694913943,0.67309895,119030.0,119020.0,0.67141338]
[1753694914149,0.86429965,119030.0,119020.0,0.1680221]
[1753694914347,0.86429965,119030.0,119020.0,0.8368621]
[1753694914941,0.86529965,119030.0,119020.0,0.8368621]
[1753694915554,0.3804421,119020.0,119010.0,1.68476279]
[1753694915752,0.86430205,119020.0,119010.0,2.35360279]
[1753694916855,0.61260641,119020.0,119010.0,2.10190715]
[1753694917455,0.61260641,119020.0,119010.0,1.43306715]
[1753694917754,0.61260641,119020.0,119010.0,2.10190715]
[1753694917950,0.61260641,119020.0,119010.0,2.437746]
[1753694921454,0.61260641,119020.0,119010.0,1.768906]
[1753694921659,0.61260641,119020.0,119010.0,2.437706]
[1753694928266,0.61260641,119020.0,119010.0,2.10186715]
[1753694928561,0.61260641,119020.0,119010.0,2.437706]
[1753694932366,0.61260641,119020.0,119010.0,1.275066]
[1753694932767,0.61260641,119020.0,119010.0,0.9208386]
[1753694932977,0.61260641,119020.0,119010.0,1.25667745]
[1753694933466,0.61260641,119020.0,119010.0,0.2520386]
[1753694933666,0.61260641,119020.0,119010.0,0.9208386]
[1753694934464,0.61260641,119020.0,119010.0,0.8368362]
[1753694934868,0.61260641,119020.0,119010.0,0.1680362]
[1753694935069,0.61260641,119020.0,119010.0,0.8368362]
[1753694935365,0.94844526,119020.0,119010.0,0.8368362]
[1753694936777,0.8645072,119020.0,119010.0,1.08873699]
[1753694937871,0.8645072,119020.0,119010.0,0.8368362]
[1753694938068,0.9485237,119020.0,119010.0,0.1680363]
[1753694938273,1.28444169,119020.0,119010.0,0.8368363]
[1753694938570,1.0325409,119020.0,119010.0,0.8368363]
[1753694938763,0.3865663,119010.0,119000.0,0.54915163]
[1753694938960,0.8605114,119010.0,119000.0,0.94845163]
[1753694939373,0.8605114,119010.0,119000.0,1.20035242]
[1753694940370,0.8605114,119010.0,119000.0,1.20235242]
[1753694940967,0.8605114,119010.0,119000.0,0.53355242]
[1753694941168,0.60861061,119010.0,119000.0,0.95145163]
[1753694941368,0.8605114,119010.0,119000.0,1.20335242]
[1753694943964,0.8605114,119010.0,119000.0,0.24063983]
[1753694944169,0.8605114,119010.0,119000.0,1.16134062]
[1753694944677,0.8605114,119010.0,119000.0,0.003]
[1753694944875,0.94458563,119010.0,119000.0,0.6718]
[1753694945264,0.92805132,119010.0,119000.0,0.6718]
[1753694945470,0.94479947,119010.0,119000.0,0.6718]
[1753694946170,0.94479947,119010.0,119000.0,0.003]
[1753694946372,0.94479947,119010.0,119000.0,0.6718]
[1753694948472,0.94479947,119010.0,119000.0,0.003]
[1753694948671,0.94479947,119010.0,119000.0,0.6718]
[1753694950681,0.94479947,119010.0,119000.0,0.8398504]
[1753694951380,0.94479947,119010.0,119000.0,0.6718]
[1753694951577,0.1680786,118980.0,118970.0,1.6843422]
[1753694951776,0.94484177,118980.0,118970.0,2.3531422]
[1753694951981,0.60886675,118980.0,118970.0,2.3531422]
[1753694953180,0.60886675,118980.0,118970.0,2.3571422]
[1753694953781,0.60886675,118980.0,118970.0,2.71653367]
[1753694953978,0.60886675,118980.0,118970.0,2.71953367]
[1753694954174,0.94484177,118980.0,118970.0,1.36122925]
[1753694954377,0.94484177,118980.0,118970.0,2.0066528]
[1753694954574,0.94484177,118980.0,118970.0,2.0036528]
[1753694954879,1.01270896,118980.0,118970.0,1.83856]
[1753694955078,1.01270896,118980.0,118970.0,2.0066527]
[1753694957183,1.01270896,118980.0,118970.0,1.83856]
[1753694957584,1.01270896,118980.0,118970.0,2.0066527]
[1753694957883,1.01270896,118980.0,118970.0,1.83856]
[1753694959584,1.01270896,118980.0,118970.0,1.16972]
[1753694959887,1.01270896,118980.0,118970.0,1.8386]
[1753694963483,1.01270896,118980.0,118970.0,2.0066927]
[1753694963682,0.29831394,118980.0,118970.0,2.34266772]
[1753694965882,0.67406394,118980.0,118970.0,2.0066927]
[1753694967488,0.67406394,118980.0,118970.0,1.16972]
[1753694967691,1.0705339,118980.0,118970.0,1.83868]
[1753694967887,1.0705339,118980.0,118970.0,1.16972]
[1753694968082,1.0705339,118980.0,118970.0,2.0067727]
[1753694968588,1.0705339,118980.0,118970.0,1.3378127]
[1753694968786,1.0705339,118980.0,118970.0,2.0067727]
[1753694969903,1.0705339,118980.0,118970.0,1.3378127]
[1753694970106,1.0705339,118980.0,118970.0,2.0067727]
[1753694973206,1.01003896,118980.0,118970.0,2.0067727]
[1753694974806,1.08566715,118980.0,118970.0,2.0067727]
[1753694975005,1.07035893,118980.0,118970.0,2.0067727]
[1753694975904,1.00999718,118980.0,118970.0,2.0067727]
[1753694976804,1.00999718,118980.0,118970.0,1.3378127]
[1753694977004,1.00999718,118980.0,118970.0,2.0068127]
[1753694984910,1.08566715,118980.0,118970.0,2.0068127]
[1753694985813,1.00999718,118980.0,118970.0,2.0068127]
[1753694986006,1.07051338,118980.0,118970.0,2.0068127]
[1753694986509,0.73453836,118980.0,118970.0,2.0068127]
[1753694986816,1.07051338,118980.0,118970.0,2.0068127]
[1753694988911,0.35878836,118980.0,118970.0,2.34278772]
[1753694990113,0.29827216,118980.0,118970.0,2.34278772]
[1753694990415,0.43387216,118980.0,118970.0,2.34278772]
[1753694994822,0.66986216,118980.0,118970.0,2.34278772]
[1753694995922,0.66986216,118980.0,118970.0,1.67378772]
[1753694996123,0.66986216,118980.0,118970.0,2.34274772]
[1753694998222,0.59869216,118980.0,118970.0,2.34274772]
[1753694998523,0.46309216,118980.0,118970.0,2.34274772]
[1753694999524,0.29827216,118980.0,118970.0,2.34274772]
[1753694999726,0.29827216,118980.0,118970.0,1.67378772]
[1753694999926,0.29827216,118980.0,118970.0,1.18002772]
[1753695000330,0.13019356,118980.0,118970.0,1.18002772]
[1753695000522,0.25265216,118980.0,118970.0,1.18002772]
[1753695000924,0.08457356,118980.0,118970.0,1.18002772]
[1753695001324,0.25265216,118980.0,118970.0,1.18002772]
[1753695001525,0.30071216,118980.0,118970.0,1.18002772]
[1753695002626,0.36122836,118980.0,118970.0,1.18002772]
[1753695003429,0.30071216,118980.0,118970.0,1.18002772]
[1753695003934,0.36122836,118980.0,118970.0,1.18002772]
[1753695004128,0.39417836,118980.0,118970.0,0.51106772]
[1753695004328,0.33366216,118980.0,118970.0,1.18002772]
[1753695004535,0.67230216,118980.0,118970.0,1.44952772]
[1753695005930,0.67230216,118980.0,118970.0,0.4445927]
[1753695006132,0.67230216,118980.0,118970.0,1.1136727]
[1753695006835,0.67230216,118980.0,118970.0,1.44964772]
[1753695007135,0.60113216,118980.0,118970.0,1.44964772]
[1753695007331,0.58442579,118980.0,118970.0,1.44964772]
[1753695007532,0.60116297,118980.0,118970.0,1.44964772]
[1753695007732,0.30074297,118980.0,118970.0,1.44964772]
[1753695008135,0.13266437,118980.0,118970.0,1.44964772]
[1753695008533,0.30074297,118980.0,118970.0,1.44964772]
[1753695012439,0.65993297,118980.0,118970.0,0.78056772]
[1753695012644,0.65993297,118980.0,118970.0,1.44968772]
[1753695014642,0.65993297,118980.0,118970.0,0.78056772]
[1753695014841,0.65993297,118980.0,118970.0,1.44964772]
[1753695016440,0.65993297,118980.0,118970.0,1.18014772]
[1753695019040,0.72044917,118980.0,118970.0,1.18014772]
[1753695020449,0.73560294,118980.0,118970.0,1.0918074]
[1753695020652,0.71886576,118980.0,118970.0,1.0918074]
[1753695022951,0.71886576,118980.0,118970.0,0.4227274]
[1753695023148,0.64319579,118980.0,118970.0,1.0916874]
[1753695027660,0.70368906,118980.0,118970.0,1.0916874]
[1753695028866,0.70368906,118980.0,118970.0,0.4227274]
[1753695029067,0.64319579,118980.0,118970.0,1.0916874]
[1753695032969,0.64319579,118980.0,118970.0,0.75571238]
[1753695033166,0.64319579,118980.0,118970.0,1.0916874]
[1753695034768,0.64319579,118980.0,118970.0,1.0916474]
[1753695036774,0.64319579,118980.0,118970.0,1.00771423]
[1753695038069,0.70368906,118980.0,118970.0,1.00771423]
[1753695041573,0.40598719,118980.0,118970.0,0.59083608]
[1753695041879,0.28400579,118980.0,118970.0,1.25975608]
[1753695042377,0.64357579,118980.0,118970.0,1.25975608]
[1753695043371,0.57095579,118980.0,118970.0,1.25975608]
[1753695043572,0.11592719,118980.0,118970.0,1.25975608]
[1753695043878,0.28400579,118980.0,118970.0,1.25975608]
[1753695044376,0.11592719,118980.0,118970.0,1.25975608]
[1753695045867,0.11592719,118980.0,118970.0,1.52925608]
[1753695047275,0.51991569,118980.0,118970.0,0.86033608]
[1753695047477,0.64468569,118980.0,118970.0,1.52965608]
[1753695049580,0.64468569,118980.0,118970.0,1.27761423]
[1753695049782,0.64468569,118980.0,118970.0,1.52965608]
[1753695051180,0.64468569,118980.0,118970.0,0.86033608]
[1753695051381,0.64468569,118980.0,118970.0,1.52949608]
[1753695054084,0.64468569,118980.0,118970.0,0.86033608]
[1753695054281,0.64468569,118980.0,118970.0,1.52941608]
[1753695055678,0.70517896,118980.0,118970.0,1.52941608]
[1753695056774,0.70517896,118980.0,118970.0,0.60829423]
[1753695056984,0.70517896,118980.0,118970.0,1.27721423]
[1753695056985,0.64468569,118980.0,118970.0,1.27721423]
[1753695061591,0.89672754,118980.0,118970.0,1.27721423]
[1753695062390,0.95722081,118980.0,118970.0,1.27721423]
[1753695065194,0.89672754,118980.0,118970.0,1.27721423]
[1753695066993,0.64468569,118980.0,118970.0,1.27721423]
[1753695070091,0.64468569,118980.0,118970.0,1.52925608]
[1753695072604,0.64468579,118980.0,118970.0,1.52925608]
[1753695073300,0.64468579,118980.0,118970.0,0.86033608]
[1753695073500,0.64468579,118980.0,118970.0,1.52925608]
[1753695077006,0.64472579,118980.0,118970.0,1.52925608]
[1753695080805,0.64472579,118980.0,118970.0,0.60829423]
[1753695081007,0.64472579,118980.0,118970.0,1.27717423]
[1753695085406,0.89676764,118980.0,118970.0,1.27717423]
[1753695085606,0.64472579,118980.0,118970.0,1.27717423]
[1753695087804,0.89676764,118980.0,118970.0,1.27717423]
[1753695089011,0.64472579,118980.0,118970.0,1.27717423]
[1753695091410,0.64472579,118980.0,118970.0,1.52921608]
[1753695094714,0.11596719,118980.0,118970.0,1.52921608]
[1753695097023,0.28404579,118980.0,118970.0,1.52921608]
[1753695097317,0.41394579,118980.0,118970.0,1.52921608]
[1753695097516,0.65328579,118980.0,118970.0,1.52921608]
[1753695098214,0.48520719,118980.0,118970.0,1.52921608]
[1753695099118,0.41141719,118980.0,118970.0,1.52921608]
[1753695104422,0.57949579,118980.0,118970.0,0.86033608]
[1753695104616,0.57949579,118980.0,118970.0,1.52973608]
[1753695104617,0.64935579,118980.0,118970.0,1.52973608]
[1753695109618,0.90139764,118980.0,118970.0,1.27757423]
[1753695110213,1.15343949,118980.0,118970.0,0.60829423]
[1753695110412,1.21393276,118980.0,118970.0,1.1071527]
[1753695111025,1.21393276,118980.0,118970.0,0.8376527]
[1753695111225,1.23232372,118980.0,118970.0,0.8376527]
[1753695111521,1.15343949,118980.0,118970.0,0.8376527]
[1753695111724,1.15343949,118980.0,118970.0,1.06950138]
[1753695112625,1.25938318,118980.0,118970.0,1.06950138]
[1753695112926,1.25938318,118980.0,118970.0,0.14789953]
[1753695113125,1.15343949,118980.0,118970.0,1.06938138]
[1753695117930,1.15343949,118980.0,118970.0,0.81733953]
[1753695118429,1.15343949,118980.0,118970.0,0.8375327]
[1753695118624,1.15343949,118980.0,118970.0,0.1680927]
[1753695118829,1.15343949,118980.0,118970.0,0.8377327]
[1753695119031,1.15343949,118980.0,118970.0,0.8377727]
[1753695119732,1.15343949,118980.0,118970.0,0.1680927]
[1753695119931,1.17189064,118980.0,118970.0,0.8377727]
[1753695120534,0.91984879,118980.0,118970.0,0.8377727]
[1753695120933,0.91984879,118980.0,118970.0,0.1680927]
[1753695121233,0.91984879,118980.0,118970.0,0.8376927]
[1753695121433,0.98026963,118980.0,118970.0,1.08973455]
[1753695121738,0.98026963,118980.0,118970.0,0.42013455]
[1753695122032,0.98026963,118980.0,118970.0,1.08973455]
[1753695122432,0.91984879,118980.0,118970.0,1.08973455]
[1753695122628,1.23231148,118980.0,118970.0,0.8376527]
[1753695122831,0.98026963,118980.0,118970.0,0.8376527]
[1753695123629,0.5727528,118970.0,118960.0,0.4376026]
[1753695123833,0.82479465,118970.0,118960.0,1.35916445]
[1753695124134,0.88521549,118970.0,118960.0,1.35916445]
[1753695125332,0.88521549,118970.0,118960.0,1.36116445]
[1753695126233,0.88621549,118970.0,118960.0,1.35916445]
[1753695128446,0.88625549,118970.0,118960.0,1.35916445]
[1753695128646,0.88625549,118970.0,118960.0,1.08966445]
[1753695130749,0.63421364,118970.0,118960.0,1.3417063]
[1753695132952,0.63421364,118970.0,118960.0,0.6721863]
[1753695133149,0.82583465,118970.0,118960.0,1.08938445]
[1753695133450,0.82583465,118970.0,118960.0,1.3414263]
[1753695133749,0.5737928,118970.0,118960.0,1.3413863]
[1753695134251,0.82583465,118970.0,118960.0,1.3413863]
[1753695135855,0.82583465,118970.0,118960.0,1.3412263]
[1753695138158,0.5737928,118970.0,118960.0,1.3412263]
[1753695138456,0.82583465,118970.0,118960.0,1.3412263]
[1753695139458,0.5737928,118970.0,118960.0,1.3412263]
[1753695139755,0.82583465,118970.0,118960.0,1.3412263]
[1753695139959,0.1681068,118960.0,118950.0,1.4152059]
[1753695140258,0.1681068,118960.0,118950.0,1.66724775]
[1753695140259,0.5722068,118960.0,118950.0,1.66724775]
[1753695140454,0.4452868,118960.0,118950.0,2.33652775]
[1753695140652,0.2169968,118960.0,118950.0,1.9192896]
[1753695140851,0.2169968,118960.0,118950.0,2.5888096]
[1753695141060,0.2169968,118960.0,118950.0,2.60492461]
[1753695141756,0.3411568,118960.0,118950.0,2.60492461]
[1753695143258,0.3411568,118960.0,118950.0,1.93540461]
[1753695143464,0.5722068,118960.0,118950.0,2.87458461]
[1753695143962,0.4995368,118960.0,118950.0,2.87458461]
[1753695145159,0.3753768,118960.0,118950.0,2.87458461]
[1753695145365,0.2169968,118960.0,118950.0,2.87458461]
[1753695145958,0.04889,118960.0,118950.0,2.87458461]
[1753695146667,0.04893,118970.0,118960.0,0.1681069]
[1753695146870,0.2170228,118970.0,118960.0,0.6721906]
[1753695147062,0.5722328,118970.0,118960.0,0.1681069]
[1753695147366,0.63265364,118970.0,118960.0,1.3427506]
[1753695147768,0.55998364,118970.0,118960.0,1.3427506]
[1753695149067,0.56098364,118970.0,118960.0,1.3427506]
[1753695149469,0.56098364,118970.0,118960.0,1.6122506]
[1753695149767,0.5732328,118970.0,118960.0,1.6125306]
[1753695149968,0.82527465,118970.0,118960.0,1.6125306]
[1753695150469,0.5732328,118970.0,118960.0,1.6125306]
[1753695150664,0.82527465,118970.0,118960.0,1.6125306]
[1753695151267,0.5732328,118970.0,118960.0,1.6125306]
[1753695157469,0.5005628,118970.0,118960.0,1.6125306]
[1753695159368,0.43682364,118970.0,118960.0,1.6125306]
[1753695160973,0.3764028,118970.0,118960.0,1.6125306]
[1753695164078,0.4906228,118970.0,118960.0,1.6125306]
[1753695166082,0.5587128,118970.0,118960.0,1.6125306]
[1753695170282,0.61913364,118970.0,118960.0,1.6125306]
[1753695181488,0.2180227,118970.0,118960.0,1.86457245]
[1753695181790,0.04993,118970.0,118960.0,1.88330441]
[1753695187688,0.00104,118970.0,118960.0,1.88330441]
[1753695188794,0.04881,118970.0,118960.0,1.88330441]
[1753695192192,0.00104,118970.0,118960.0,1.88330441]
[1753695193396,0.04698,118970.0,118960.0,1.88330441]
[1753695209326,0.04698,118970.0,118960.0,1.91358183]
[1753695216430,0.04698,118970.0,118960.0,3.07658183]
[1753695225142,0.04698,118970.0,118960.0,3.04630441]
[1753695235253,0.04698,118970.0,118960.0,3.07658183]
[1753695236852,0.16408,118970.0,118960.0,3.07658183]
[1753695242665,0.39145,118970.0,118960.0,3.07658183]
[1753695242855,0.39145,118970.0,118960.0,2.40574183]
[1753695243162,0.39145,118970.0,118960.0,3.07590183]
[1753695249272,0.31808,118970.0,118960.0,3.07590183]
[1753695249874,0.04698,118970.0,118960.0,3.07590183]
[1753695250768,0.04702,118970.0,118960.0,3.07590183]
[1753695260371,0.16503,118970.0,118960.0,3.07590183]
[1753695275287,0.16503,118970.0,118960.0,3.04562441]
[1753695281086,0.38939,118970.0,118960.0,2.37546441]
[1753695281284,0.38939,118970.0,118960.0,3.04470441]
[1753695284986,0.38939,118970.0,118960.0,2.79266256]
[1753695286088,0.5574827,118970.0,118960.0,2.79266256]
[1753695287589,0.5574827,118970.0,118960.0,2.54086071]
[1753695287896,0.5574827,118970.0,118960.0,2.79294256]
[1753695288191,0.5574827,118970.0,118960.0,2.54090071]
[1753695288691,0.5574827,118970.0,118960.0,2.27140071]
[1753695290294,0.38939,118970.0,118960.0,2.5045506]
[1753695290686,0.38939,118970.0,118960.0,2.75659245]
[1753695291594,0.38939,118970.0,118960.0,2.5045506]
[1753695293890,0.38939,118970.0,118960.0,2.52332057]
[1753695294290,0.5574827,118970.0,118960.0,2.52332057]
[1753695294498,0.5574827,118970.0,118960.0,2.79282057]
[1753695307006,0.38939,118970.0,118960.0,2.79282057]
[1753695307201,0.04702,118970.0,118960.0,3.04486242]
[1753695312718,0.04702,118970.0,118960.0,2.79282057]
[1753695315231,0.10744084,118970.0,118960.0,2.79282057]
[1753695317522,0.5578928,118970.0,118960.0,2.79282057]
[1753695318028,0.5578928,118970.0,118960.0,2.12346057]
[1753695318229,0.61837047,118970.0,118960.0,2.79278057]
[1753695321032,0.5578928,118970.0,118960.0,2.79278057]
[1753695321534,0.61838005,118970.0,118960.0,2.79278057]
[1753695323932,0.61838005,118970.0,118960.0,2.28869687]
[1753695324130,0.61838005,118970.0,118960.0,2.79278057]
[1753695325928,0.5578928,118970.0,118960.0,2.79278057]
[1753695326837,0.5578928,118970.0,118960.0,1.62978057]
[1753695329738,1.7478928,118970.0,118960.0,1.62978057]
[1753695332642,1.5798,118970.0,118960.0,1.88182242]
[1753695332844,1.50502,118970.0,118960.0,1.88182242]
[1753695333240,1.39006,118970.0,118960.0,1.88182242]
[1753695334142,0.20006,118970.0,118960.0,1.88182242]
[1753695335142,0.04702,118970.0,118960.0,1.88182242]
[1753695335347,0.00108,118970.0,118960.0,1.88182242]
[1753695338246,0.04629,118970.0,118960.0,1.88182242]
[1753695348845,0.04629,118970.0,118960.0,1.88178242]
[1753695355452,0.00112,118970.0,118960.0,1.88178242]
[1753695356051,0.04786,118970.0,118960.0,1.88178242]
[1753695367368,0.10834725,118970.0,118960.0,1.88178242]
[1753695368065,0.04786,118970.0,118960.0,1.88178242]
[1753695375773,0.22366,118970.0,118960.0,1.88174242]
[1753695376374,0.27134,118970.0,118960.0,1.88174242]
[1753695376575,0.27134,118970.0,118960.0,3.04478242]
[1753695377775,0.37525,118970.0,118960.0,3.04478242]
[1753695387288,0.30432,118970.0,118960.0,3.04478242]
[1753695391591,0.04786,118970.0,118960.0,3.04478242]
[1753695392389,0.00112,118970.0,118960.0,3.04478242]
[1753695392789,0.04697,118970.0,118960.0,3.04478242]
[1753695395191,0.04697,118970.0,118960.0,2.28865687]
[1753695395390,0.04697,118970.0,118960.0,3.04478242]
[1753695413805,0.00112,118970.0,118960.0,3.80090797]
[1753695414005,0.00112,118970.0,118960.0,3.04478242]
[1753695414506,0.04921,118970.0,118960.0,3.04478242]
[1753695415201,0.04921,118970.0,118960.0,3.04466242]
[1753695415406,0.04921,118970.0,118960.0,3.04492805]
[1753695415606,0.15735,118970.0,118960.0,3.04492805]
[1753695417008,0.21783725,118970.0,118960.0,3.04492805]
[1753695417305,0.28946725,118970.0,118960.0,3.04492805]
[1753695422912,0.28946725,118970.0,118960.0,3.04488805]
[1753695426013,0.22898,118970.0,118960.0,3.04488805]
[1753695431210,0.38021,118970.0,118960.0,2.1237662]
[1753695431516,0.38021,118970.0,118960.0,2.7928062]
[1753695436215,0.5483027,118970.0,118960.0,2.7928062]
[1753695446129,0.38021,118970.0,118960.0,2.7928062]
[1753695447021,0.38021,118970.0,118960.0,3.04484805]
[1753695447421,0.12084,118970.0,118960.0,3.04484805]
[1753695447618,0.04921,118970.0,118960.0,3.04484805]
[1753695448921,0.00112,118970.0,118960.0,3.2968899]
[1753695449322,0.00112,118970.0,118960.0,3.8009736]
[1753695449515,0.00112,118970.0,118960.0,3.04484805]
[1753695450321,0.05111,118970.0,118960.0,3.04484805]
[1753695454519,0.00112,118970.0,118960.0,3.04484805]
[1753695455023,0.05111,118970.0,118960.0,3.04484805]
[1753695456024,0.00112,118970.0,118960.0,3.04484805]
[1753695460226,0.17838444,118980.0,118970.0,0.1680927]
[1753695460431,0.17838444,118980.0,118970.0,1.59317825]
[1753695461331,0.11789719,118980.0,118970.0,1.59317825]
[1753695461626,0.12089719,118980.0,118970.0,1.3411364]
[1753695461829,0.35421444,118980.0,118970.0,1.3411364]
[1753695462129,0.50191444,118980.0,118970.0,1.3411364]
[1753695464430,0.44142719,118980.0,118970.0,1.3411364]
[1753695465822,0.50191444,118980.0,118970.0,1.6106364]
[1753695466024,0.44142719,118980.0,118970.0,1.6106364]
[1753695469134,0.44142719,118980.0,118970.0,1.1065527]
[1753695469333,0.44142719,118980.0,118970.0,1.6106364]
[1753695473132,0.44142719,118980.0,118970.0,2.7736364]
[1753695473437,0.44142719,118980.0,118970.0,2.7735964]
[1753695481141,0.44142719,118980.0,118970.0,2.1046764]
[1753695481344,0.44142719,118980.0,118970.0,2.7735564]
[1753695486149,0.44142719,118980.0,118970.0,2.1046764]
[1753695486352,0.86154764,118980.0,118970.0,0.68963455]
[1753695486553,0.86154764,118980.0,118970.0,1.35851455]
[1753695487352,0.60950579,118980.0,118970.0,1.35851455]
[1753695488053,0.60950579,118980.0,118970.0,0.68963455]
[1753695488254,0.60950579,118980.0,118970.0,1.35851455]
[1753695489455,0.86154764,118980.0,118970.0,1.35851455]
[1753695489753,0.60950579,118980.0,118970.0,1.08901455]
[1753695491453,0.60954579,118980.0,118970.0,1.08901455]
[1753695492157,0.60954579,118980.0,118970.0,0.42013455]
[1753695492455,0.60954579,118980.0,118970.0,1.08901455]
[1753695492849,0.60954579,118980.0,118970.0,0.42013455]
[1753695493050,1.18683889,118980.0,118970.0,0.8369728]
[1753695493757,1.16174704,118980.0,118970.0,1.08901465]
[1753695495954,1.22223429,118980.0,118970.0,1.08901465]
[1753695496159,1.16174704,118980.0,118970.0,0.42013465]
[1753695496358,1.16174704,118980.0,118970.0,1.08905465]
[1753695496560,0.90970519,118980.0,118970.0,1.08905465]
[1753695496760,1.16174704,118980.0,118970.0,1.08905465]
[1753695497059,1.22223429,118980.0,118970.0,1.08905465]
[1753695498262,0.97019244,118980.0,118970.0,1.08905465]
[1753695498654,1.22223429,118980.0,118970.0,1.08905465]
[1753695500960,0.97019244,118980.0,118970.0,1.08905465]
[1753695501262,1.22223429,118980.0,118970.0,1.08905465]
[1753695501664,1.05413029,118980.0,118970.0,1.08905465]
[1753695503663,0.80208844,118980.0,118970.0,1.08905465]
[1753695504164,1.05413029,118980.0,118970.0,1.08905465]
[1753695505968,0.99364304,118980.0,118970.0,1.08905465]
[1753695506169,1.06918711,118980.0,118970.0,1.08905465]
[1753695511469,0.99364304,118980.0,118970.0,1.08905465]
[1753695515175,0.99364304,118980.0,118970.0,1.06886067]
[1753695515375,1.09958673,118980.0,118970.0,1.06886067]
[1753695515975,1.15995494,118980.0,118970.0,1.06886067]
[1753695516175,1.05401125,118980.0,118970.0,1.06886067]
[1753695517976,1.05401125,118980.0,118970.0,1.08905455]
[1753695518377,1.05401125,118980.0,118970.0,0.42013455]
[1753695518577,1.05401125,118980.0,118970.0,1.08901455]
[1753695521286,0.99364304,118980.0,118970.0,1.08901455]
[1753695522583,0.99364304,118980.0,118970.0,0.8369727]
[1753695522781,0.99364304,118980.0,118970.0,1.08901455]
[1753695523182,0.99364304,118980.0,118970.0,1.06882057]
[1753695523382,1.0691033,118980.0,118970.0,0.81677872]
[1753695523584,1.0691033,118980.0,118970.0,1.06882057]
[1753695524377,1.07971771,118980.0,118970.0,1.06882057]
[1753695524976,0.5288927,118970.0,118960.0,0.50418975]
[1753695525183,0.5288927,118970.0,118960.0,1.17302975]
[1753695526181,0.5288927,118970.0,118960.0,1.4250716]
[1753695526487,0.5288927,118970.0,118960.0,0.7562316]
[1753695526982,0.5288927,118970.0,118960.0,1.4250716]
[1753695527182,0.5298927,118970.0,118960.0,1.4250716]
[1753695528185,0.5298927,118970.0,118960.0,0.7562316]
[1753695528574,0.5298927,118970.0,118960.0,1.4250716]
[1753695529787,0.5298927,118970.0,118960.0,1.17302975]
[1753695530389,0.5298927,118970.0,118960.0,0.50418975]
[1753695530590,0.59030224,118970.0,118960.0,1.17302975]
[1753695532087,0.59030224,118970.0,118960.0,1.4250716]
[1753695535193,0.60684343,118970.0,118960.0,1.4250716]
[1753695536093,0.54643389,118970.0,118960.0,1.4250716]
[1753695539906,0.60684343,118970.0,118960.0,1.4250716]
[1753695544208,0.79847574,118970.0,118960.0,0.9209879]
[1753695544501,0.85888528,118970.0,118960.0,1.17302975]
[1753695545007,0.60684343,118970.0,118960.0,1.4250716]
[1753695545507,0.60684343,118970.0,118960.0,1.17302975]
[1753695545708,0.60684343,118970.0,118960.0,1.4250716]
[1753695546199,0.54643389,118970.0,118960.0,1.4250716]
[1753695546398,0.62189415,118970.0,118960.0,1.4250716]
[1753695547405,0.62189415,118970.0,118960.0,0.7562316]
[1753695547709,0.62189415,118970.0,118960.0,1.17470975]
[1753695548410,0.62188411,118970.0,118960.0,1.17470975]
[1753695549110,0.62188411,118970.0,118960.0,1.13268375]
[1753695549814,0.62188411,118970.0,118960.0,0.46216375]
[1753695550008,0.62188411,118970.0,118960.0,1.13260375]
[1753695551613,0.62188411,118970.0,118960.0,1.3846456]
[1753695556117,0.68223982,118970.0,118960.0,1.3846456]
[1753695556315,0.60677956,118970.0,118960.0,1.3846456]
[1753695556816,0.60677956,118970.0,118960.0,0.7142056]
[1753695557006,0.60677956,118970.0,118960.0,1.3845656]
[1753695558114,0.60677956,118970.0,118960.0,0.5040837]
[1753695558313,0.7984657,118970.0,118960.0,0.6702]
[1753695558514,0.7984657,118970.0,118960.0,0.92224185]
[1753695559320,0.7984657,118970.0,118960.0,1.09034865]
[1753695562019,0.54642385,118970.0,118960.0,1.09034865]
[1753695562220,0.85882141,118970.0,118960.0,1.09034865]
[1753695570824,0.85882141,118970.0,118960.0,0.92224185]
[1753695571125,0.85882141,118970.0,118960.0,1.09034865]
[1753695571426,0.7984657,118970.0,118960.0,1.07015272]
[1753695571626,0.5296668,118960.0,118950.0,0.74779646]
[1753695571817,0.85854123,118960.0,118950.0,1.41763646]
[1753695572017,0.54619795,118960.0,118950.0,1.41763646]
[1753695572222,0.60649938,118960.0,118950.0,1.41763646]
[1753695573024,0.60649938,118960.0,118950.0,1.41863646]
[1753695574224,0.60649938,118960.0,118950.0,1.14913646]
[1753695577627,0.85854123,118960.0,118950.0,1.14913646]
[1753695577829,0.60649938,118960.0,118950.0,1.14913646]
[1753695578622,0.54619795,118960.0,118950.0,1.14913646]
[1753695579329,0.7982398,118960.0,118950.0,1.14913646]
[1753695580423,0.85854123,118960.0,118950.0,1.14913646]
[1753695580730,0.7982398,118960.0,118950.0,1.14913646]
[1753695581232,0.60649938,118960.0,118950.0,1.14913646]
[1753695583335,0.54619795,118960.0,118950.0,1.14913646]
[1753695583537,0.60649938,118960.0,118950.0,1.14913646]
[1753695584037,0.60649938,118960.0,118950.0,1.40117831]
[1753695585636,0.54619795,118960.0,118950.0,1.40117831]
[1753695586234,0.60649938,118960.0,118950.0,1.40117831]
[1753695587536,0.60649938,118960.0,118950.0,1.14913646]
[1753695590136,0.85854123,118960.0,118950.0,0.42115225]
[1753695590440,1.11058477,118960.0,118950.0,0.6716]
[1753695591639,1.11058477,118960.0,118950.0,0.67156]
[1753695592237,1.11058477,118960.0,118950.0,0.67152]
[1753695596244,1.1257436,118960.0,118950.0,0.67152]
[1753695598045,1.0337505,118960.0,118950.0,0.67152]
[1753695598447,1.12571811,118960.0,118950.0,0.67152]
[1753695603862,1.12571811,118960.0,118950.0,0.60335239]
[1753695604564,1.10918829,118960.0,118950.0,0.60335239]
[1753695604765,0.60510459,118960.0,118950.0,0.77147339]
[1753695604953,1.10918829,118960.0,118950.0,0.77147339]
[1753695605866,1.10918829,118960.0,118950.0,0.60335239]
[1753695606067,1.0337505,118960.0,118950.0,0.60335239]
[1753695606368,1.09409422,118960.0,118950.0,0.60335239]